bitfinex/quotes_SOLUSD_20220227
["timestamp","ask_amount","ask_price","bid_price","bid_amount"]
[1645934311709,1.75719032,87.189,87.092,7.33678921]
[1645934311909,1.75719032,87.189,87.093,114.9]
[1645934312111,1.75719032,87.189,87.094,4.59]
[1645934312310,1.75719032,87.189,87.095,0.8280931]
[1645934312510,1.75719032,87.189,87.097,114.9]
[1645934312711,1.75719032,87.189,87.098,4.59]
[1645934314610,1.75719032,87.189,87.1,16.54]
[1645934314811,1.75719032,87.189,87.101,119.49]
[1645934315018,1.75719032,87.189,87.101,122.23678921]
[1645934315211,1.75719032,87.189,87.102,2.74678921]
[1645934321519,1.75630583,87.187,87.102,2.74678921]
[1645934326637,1.75630583,87.187,87.102,2.24678921]
[1645934326837,1.75630583,87.187,87.103,2.74678921]
[1645934327237,1.75630583,87.187,87.102,2.74678921]
[1645934328737,1.25630583,87.187,87.102,2.74678921]
[1645934331741,1.25630583,87.187,87.104,114.9]
[1645934332141,1.25630583,87.187,87.106,114.9]
[1645934332440,1.25630583,87.187,87.111,114.9]
[1645934332842,1.25630583,87.187,87.113,2.04465857]
[1645934333243,1.25630583,87.187,87.114,2.74678921]
[1645934359566,24.2222,87.188,87.114,11.26678921]
[1645934359767,1.89372451,87.208,87.115,147.03889141]
[1645934359989,1.59022118,87.206,87.115,165.15090062]
[1645934360167,1.59022118,87.206,87.117,114.9]
[1645934360368,1.59022118,87.206,87.131,114.9]
[1645934360570,1.81170109,87.204,87.133,114.9]
[1645934361168,1.81170109,87.204,87.134,2.74678921]
[1645934363871,1.81170109,87.204,87.135,114.9]
[1645934364170,1.81170109,87.204,87.141,114.9]
[1645934364569,1.81170109,87.204,87.142,2.74678921]
[1645934364972,1.81170109,87.204,87.144,114.9]
[1645934368773,1.81170109,87.204,87.145,2.74678921]
[1645934368971,1.81170109,87.204,87.147,2.04465857]
[1645934369174,1.81170109,87.204,87.15,16.54]
[1645934369571,1.81170109,87.204,87.143,23.0212]
[1645934372776,60.00665085,87.203,87.143,23.0212]
[1645934373078,1.77366063,87.202,87.143,23.0212]
[1645934374081,1.77366063,87.202,87.118,114.9]
[1645934374277,1.77366063,87.202,87.119,26.51660556]
[1645934374678,1.77366063,87.202,87.111,114.9]
[1645934374877,1.77366063,87.202,87.095,26.64796067]
[1645934374878,1.77366063,87.202,87.103,23.5508]
[1645934375077,7.33578921,87.201,87.103,23.5508]
[1645934375280,9.00929279,87.201,87.103,23.5508]
[1645934375478,40.3932984,87.2,87.091,4.589]
[1645934375677,40.3932984,87.2,87.092,2.72648411]
[1645934375678,6.426108,87.199,87.092,2.72648411]
[1645934375876,9.17289721,87.199,87.092,2.72648411]
[1645934376079,4.32377177,87.198,87.089,16.8562]
[1645934376377,1.58560396,87.196,87.064,2.74678921]
[1645934376579,1.58560396,87.191,87.04,16.54]
[1645934376778,16.54,87.18,87.03,16.54]
[1645934376978,50.90675018,87.178,87.042,2.50624445]
[1645934377179,17.2323,87.17,87.043,23.2715]
[1645934377378,16.54,87.16,87.043,54.93564194]
[1645934377678,52.51483385,87.158,87.044,31.66414194]
[1645934377877,6.50400783,87.157,87.044,31.66414194]
[1645934378080,35.95579396,87.157,87.044,31.66414194]
[1645934378279,25.6827954,87.156,87.044,31.66414194]
[1645934378479,6.50847399,87.155,87.044,31.66414194]
[1645934378681,73.14131901,87.155,87.044,31.66414194]
[1645934378884,28.93903628,87.154,87.044,31.66414194]
[1645934379086,6.38079283,87.153,87.044,31.66414194]
[1645934379286,16.54,87.15,87.044,31.66414194]
[1645934379483,29.19676496,87.149,87.044,31.66414194]
[1645934379691,1.74161951,87.148,87.007,4.591]
[1645934379884,4.593,87.147,87.03,23.6672]
[1645934380091,49.3971468,87.147,87.031,2.21634626]
[1645934380286,41.84995412,87.146,87.031,2.21634626]
[1645934380485,6.23148979,87.145,87.031,2.21634626]
[1645934380684,16.54,87.14,87.031,2.21634626]
[1645934380884,6.30225733,87.139,87.031,2.21634626]
[1645934381292,72.93510235,87.139,87.031,2.21634626]
[1645934381485,28.08334992,87.138,87.031,2.21634626]
[1645934381688,6.24179409,87.137,87.031,2.21634626]
[1645934381886,32.76000582,87.137,87.031,2.21634626]
[1645934382084,1.98879861,87.136,87.031,2.21634626]
[1645934382285,1.73802432,87.134,87.031,2.21634626]
[1645934382503,50.58947909,87.129,87.031,2.21634626]
[1645934382702,1.92833005,87.128,87.031,2.21634626]
[1645934383104,25.69975257,87.128,87.031,2.21634626]
[1645934383403,1.97434433,87.127,87.031,2.21634626]
[1645934383803,1.5106426,87.125,87.031,2.21634626]
[1645934384204,1.63359688,87.123,87.031,2.21634626]
[1645934384603,2.74678921,87.122,87.031,2.21634626]
[1645934385405,22.6956,87.121,87.031,2.21634626]
[1645934385604,2.08276535,87.12,87.031,2.21634626]
[1645934386004,25.85418787,87.12,87.031,2.21634626]
[1645934386205,2.03502224,87.119,87.031,2.21634626]
[1645934388511,25.80644476,87.119,87.031,2.21634626]
[1645934388709,1.78187496,87.118,87.031,2.21634626]
[1645934389909,1.78187496,87.118,87.031,117.11634626]
[1645934390413,1.78187496,87.118,87.032,4.593]
[1645934394017,1.78187496,87.118,87.033,2.74678921]
[1645934395220,23.485,87.124,87.033,117.64678921]
[1645934395419,23.485,87.124,87.035,114.9]
[1645934396023,23.485,87.124,87.036,2.74678921]
[1645934396220,23.485,87.124,87.051,114.9]
[1645934396420,23.485,87.124,87.053,114.9]
[1645934396820,23.485,87.124,87.053,122.47]
[1645934397227,2.07709555,87.151,87.053,122.47]
[1645934397420,22.7158,87.15,87.053,122.47]
[1645934397621,2.08190749,87.149,87.053,122.47]
[1645934397821,43.99657588,87.148,87.053,122.47]
[1645934398021,2.07184908,87.147,87.053,122.47]
[1645934398222,2.07184908,87.147,87.053,7.57]
[1645934398421,4.81863829,87.147,87.052,24.9712]
[1645934398622,7.33778921,87.146,87.052,24.9712]
[1645934398823,9.08624947,87.146,87.052,24.9712]
[1645934399023,24.69821173,87.145,87.052,24.9712]
[1645934399323,6.39596357,87.144,87.052,24.9712]
[1645934399526,54.68959799,87.144,87.052,24.9712]
[1645934399724,29.77097007,87.143,87.052,24.9712]
[1645934399925,6.32592076,87.142,87.052,24.9712]
[1645934400123,56.42451875,87.142,87.052,24.9712]
[1645934400326,30.05706466,87.141,87.052,24.9712]
[1645934400524,6.2014893,87.14,87.052,24.9712]
[1645934400724,56.30008729,87.14,87.052,24.9712]
[1645934400926,54.47629584,87.139,87.052,24.9712]
[1645934401125,1.64773101,87.138,87.052,24.9712]
[1645934401325,26.34594274,87.138,87.052,24.9712]
[1645934401526,4.38399308,87.137,87.052,24.9712]
[1645934401726,26.3354156,87.137,87.052,24.9712]
[1645934401927,26.70598426,87.136,87.052,24.9712]
[1645934402128,1.77578464,87.135,87.052,24.9712]
[1645934402326,26.47399637,87.135,87.052,24.9712]
[1645934402527,1.83060078,87.134,87.052,24.9712]
[1645934402727,26.52881251,87.134,87.052,24.9712]
[1645934402926,4.64969006,87.133,87.052,24.9712]
[1645934403327,24.69821173,87.132,87.052,24.9712]
[1645934403526,1.65440456,87.131,87.052,24.9712]
[1645934403727,4.40119377,87.131,87.052,24.9712]
[1645934404127,2.74678921,87.13,87.032,4.593]
[1645934404330,22.6756,87.129,87.032,4.593]
[1645934404530,6.39747521,87.128,87.032,4.593]
[1645934404734,114.9,87.127,87.032,4.593]
[1645934404929,114.9,87.125,86.983,49.024]
[1645934405134,16.54,87.11,86.984,2.18008153]
[1645934405331,47.2251,87.109,86.984,2.18008153]
[1645934405530,47.2251,87.109,86.983,49.024]
[1645934405531,114.9,87.107,86.983,49.024]
[1645934405730,114.9,87.105,86.983,49.024]
[1645934405932,1.64990436,87.104,86.95,19.28678921]
[1645934406133,131.44,87.09,86.947,48.6382]
[1645934406332,2.06177243,87.087,86.947,48.6382]
[1645934406532,4.596,87.086,86.947,48.6382]
[1645934406732,114.9,87.085,86.947,48.6382]
[1645934406931,16.54,87.07,86.947,48.6382]
[1645934407133,48.24745614,87.068,86.947,48.6382]
[1645934407335,6.5782185,87.067,86.947,48.6382]
[1645934407534,31.27643023,87.067,86.947,48.6382]
[1645934407736,1.86641418,87.066,86.947,48.6382]
[1645934407938,6.47214459,87.065,86.947,48.6382]
[1645934408137,16.54,87.05,86.947,48.6382]
[1645934408336,24.77364382,87.049,86.947,48.6382]
[1645934408541,2.02386974,87.048,86.947,48.6382]
[1645934408755,4.77065895,87.048,86.948,114.9]
[1645934408956,2.02386974,87.048,86.948,117.64678921]
[1645934409156,2.02386974,87.048,86.949,2.74678921]
[1645934409757,2.02386974,87.048,86.951,114.9]
[1645934410159,2.02386974,87.048,86.952,2.74678921]
[1645934410960,4.77065895,87.048,86.95,16.54]
[1645934411159,21.95142252,87.047,86.95,16.54]
[1645934411359,2.0014821,87.046,86.947,48.6382]
[1645934412060,2.74678921,87.045,86.947,48.6382]
[1645934413661,2.74678921,87.045,86.948,114.9]
[1645934413859,2.74678921,87.045,86.947,48.6382]
[1645934414862,2.74678921,87.045,86.93,16.54]
[1645934415066,4.598,87.044,86.93,16.54]
[1645934415262,16.54,87.04,86.93,16.54]
[1645934415462,1.65810042,87.039,86.93,16.54]
[1645934415664,4.598,87.038,86.93,16.54]
[1645934415863,57.37589477,87.037,86.931,2.20405709]
[1645934416063,6.64522769,87.036,86.931,2.20405709]
[1645934416264,26.67082769,87.036,86.931,2.20405709]
[1645934416465,4.27570761,87.035,86.931,117.10405709]
[1645934416866,2.74678921,87.034,86.931,117.10405709]
[1645934419766,1.5289184,87.035,86.931,117.10405709]
[1645934423270,1.5289184,87.035,86.933,114.9]
[1645934423468,1.5289184,87.035,86.934,2.36882837]
[1645934423670,1.5289184,87.035,86.935,4.598]
[1645934423873,1.5289184,87.035,86.941,114.9]
[1645934424077,1.5289184,87.035,86.943,114.9]
[1645934424276,1.5289184,87.035,86.944,4.598]
[1645934426076,57.37589477,87.037,86.944,4.598]
[1645934426375,2.74678921,87.045,86.944,4.598]
[1645934426577,1.84388723,87.055,86.944,4.598]
[1645934427077,23.79530975,87.055,86.944,4.598]
[1645934427276,1.93405017,87.054,86.944,4.598]
[1645934427499,58.20555548,87.053,86.951,114.9]
[1645934427678,2.03984218,87.052,86.96,16.54]
[1645934427980,23.9912647,87.052,86.961,46.8804]
[1645934428181,2.04471838,87.051,86.961,46.8804]
[1645934429078,21.95142252,87.05,86.961,46.8804]
[1645934429278,2.0002932,87.049,86.961,46.8804]
[1645934429679,21.95142252,87.048,86.961,46.8804]
[1645934429878,1.67623695,87.047,86.961,46.8804]
[1645934430081,25.43853695,87.047,86.961,46.8804]
[1645934430281,1.66420499,87.046,86.961,46.8804]
[1645934430683,1.66420499,87.046,86.962,114.9]
[1645934432882,1.66420499,87.046,86.961,46.8804]
[1645934433583,1.66420499,87.046,86.962,114.9]
[1645934434685,1.66420499,87.046,86.961,46.8804]
[1645934440419,4.4109942,87.046,86.961,46.8804]
[1645934441619,4.4109942,87.046,86.961,45.8804]
[1645934443321,1.66420499,87.046,86.962,114.9]
[1645934443920,23.7623,87.047,86.962,114.9]
[1645934444321,23.7623,87.047,86.963,4.597]
[1645934450928,58.20555548,87.053,86.963,4.597]
[1645934451126,26.69190943,87.068,86.971,114.9]
[1645934451330,26.69190943,87.068,86.97,17.2423]
[1645934451331,24.8601,87.068,86.981,114.9]
[1645934451527,24.8601,87.068,86.983,114.9]
[1645934451528,1.52793494,87.067,86.983,114.9]
[1645934451931,23.66478396,87.078,86.983,114.9]
[1645934452130,1.71336144,87.078,86.983,114.9]
[1645934452327,51.08691928,87.068,86.983,114.9]
[1645934452530,51.08691928,87.068,86.984,114.9]
[1645934453533,51.08691928,87.068,86.991,114.9]
[1645934453730,51.08691928,87.068,87.001,114.9]
[1645934454131,1.52114036,87.067,87.001,114.9]
[1645934455131,1.52114036,87.067,87.0,16.54]
[1645934456032,1.87506685,87.066,87.0,16.54]
[1645934456235,1.87506685,87.066,86.984,17.026]
[1645934457637,1.87506685,87.066,86.985,114.9]
[1645934458037,1.87506685,87.066,86.984,17.026]
[1645934458636,1.87506685,87.066,86.985,114.9]
[1645934458837,1.87506685,87.066,86.985,147.16520165]
[1645934459342,1.87506685,87.066,86.987,114.9]
[1645934459539,1.87506685,87.066,86.991,114.9]
[1645934460038,1.87506685,87.066,86.993,114.9]
[1645934460437,1.87506685,87.066,86.995,114.9]
[1645934460837,1.87506685,87.066,86.996,147.16520165]
[1645934461241,1.87506685,87.066,86.997,32.26520165]
[1645934461639,1.87506685,87.066,86.998,114.9]
[1645934462041,1.87506685,87.066,87.0,114.9]
[1645934462547,1.87506685,87.066,87.002,114.9]
[1645934465343,1.87506685,87.066,87.001,22.7786]
[1645934468645,1.87506685,87.066,86.991,114.9]
[1645934469847,1.87506685,87.066,86.993,114.9]
[1645934470053,1.87506685,87.066,86.992,32.2909399]
[1645934470054,1.87506685,87.066,86.995,114.9]
[1645934473452,1.87506685,87.066,86.996,147.18657634]
[1645934473858,1.87506685,87.066,86.996,114.9]
[1645934474657,1.87506685,87.066,86.995,114.9]
[1645934474955,1.87506685,87.066,86.996,147.18409732]
[1645934475355,1.87506685,87.066,86.998,114.9]
[1645934475555,1.87506685,87.066,86.997,32.28409732]
[1645934475556,1.87506685,87.066,87.001,114.9]
[1645934479680,1.73661885,87.109,87.001,114.9]
[1645934479883,369.36396033,87.123,87.003,114.9]
[1645934480080,46.9428,87.118,87.004,4.594]
[1645934480282,2.00193148,87.117,87.005,114.9]
[1645934480482,2.00193148,87.117,87.006,4.594]
[1645934480681,50.16551742,87.116,87.021,114.9]
[1645934480882,1.61825751,87.115,87.023,114.9]
[1645934482384,1.61825751,87.115,87.025,114.9]
[1645934482583,1.61825751,87.115,87.031,114.9]
[1645934482784,1.61825751,87.115,87.033,114.9]
[1645934492694,1.61825751,87.115,87.034,4.593]
[1645934492891,1.61825751,87.115,87.033,114.9]
[1645934497901,1.61825751,87.115,87.033,140.16658067]
[1645934498101,1.61825751,87.115,87.034,4.593]
[1645934498300,1.61825751,87.115,87.033,140.16658067]
[1645934498801,1.61825751,87.115,87.036,114.9]
[1645934499001,1.61825751,87.115,87.051,114.9]
[1645934499201,1.61825751,87.115,87.053,114.9]
[1645934502608,1.61825751,87.115,87.052,23.4774]
[1645934504808,1.61825751,87.115,87.05,16.54]
[1645934504809,1.61825751,87.115,87.024,114.9]
[1645934505007,1.61825751,87.115,87.02,4.593]
[1645934505008,9.01825751,87.115,87.031,23.1071]
[1645934505208,2.74678921,87.114,87.031,23.1071]
[1645934505411,4.52018062,87.114,87.02,4.593]
[1645934505609,4.594,87.113,87.02,4.593]
[1645934505808,1.73272378,87.112,87.02,4.593]
[1645934506009,4.594,87.111,87.0,16.54]
[1645934506210,1.77585021,87.109,86.95,206.75]
[1645934506409,1.77585021,87.109,86.972,25.26658067]
[1645934506610,25.80042125,87.108,86.967,26.17672989]
[1645934506812,6.62037383,87.107,86.967,26.17672989]
[1645934507010,67.48217593,87.107,86.969,114.9]
[1645934507210,1.99022603,87.105,86.969,114.9]
[1645934507411,4.595,87.104,86.971,114.9]
[1645934507617,16.54,87.09,86.971,114.9]
[1645934507813,51.5622911,87.088,86.973,114.9]
[1645934508012,6.4648198,87.087,86.973,114.9]
[1645934508411,1.60943286,87.085,86.973,114.9]
[1645934508611,16.54,87.08,86.973,114.9]
[1645934508812,1.88474377,87.079,86.966,114.9]
[1645934509014,4.63153298,87.079,86.966,114.9]
[1645934509414,2.74678921,87.078,86.968,114.9]
[1645934509813,2.74678921,87.078,86.97,114.9]
[1645934510236,2.74678921,87.078,86.965,47.1403]
[1645934510736,24.05230359,87.077,86.966,32.33738537]
[1645934510937,6.30019817,87.076,86.966,32.33738537]
[1645934511138,26.20195403,87.076,86.965,47.1403]
[1645934511338,25.74255174,87.075,86.965,47.1403]
[1645934511537,1.86833532,87.074,86.965,47.1403]
[1645934511738,16.54,87.07,86.965,47.1403]
[1645934511938,1.5472394,87.068,86.965,47.1403]
[1645934512340,2.74678921,87.067,86.965,47.1403]
[1645934512539,24.29449775,87.067,86.965,47.1403]
[1645934512739,50.55001094,87.066,86.965,47.1403]
[1645934512940,2.05731592,87.065,86.965,47.1403]
[1645934513142,4.596,87.064,86.965,47.1403]
[1645934513341,6.21953066,87.064,86.965,47.1403]
[1645934513541,24.05083026,87.063,86.965,47.1403]
[1645934513741,1.82799065,87.062,86.965,47.1403]
[1645934513942,52.3043035,87.061,86.965,47.1403]
[1645934514142,1.87829033,87.06,86.965,47.1403]
[1645934514348,74.49866566,87.06,86.95,16.54]
[1645934514547,30.30067448,87.059,86.941,48.7058]
[1645934514747,2.06787631,87.058,86.941,48.7058]
[1645934514944,4.597,87.057,86.941,48.7058]
[1645934515142,7.34378921,87.057,86.942,32.33260567]
[1645934515342,47.8735,87.056,86.942,32.33260567]
[1645934515544,6.37396033,87.055,86.942,32.33260567]
[1645934515746,9.12074954,87.055,86.942,32.33260567]
[1645934515944,31.39461947,87.055,86.941,48.7058]
[1645934516143,26.79761947,87.054,86.941,48.7058]
[1645934516347,6.5608748,87.053,86.941,48.7058]
[1645934516546,9.30766401,87.053,86.941,48.7058]
[1645934516746,2.74678921,87.052,86.942,26.17672989]
[1645934516946,4.597,87.051,86.942,26.17672989]
[1645934517349,4.597,87.051,86.94,16.54]
[1645934517350,19.28678921,87.05,86.94,16.54]
[1645934517546,6.61739784,87.049,86.923,26.17672989]
[1645934517750,47.57597075,87.049,86.917,47.7999]
[1645934517949,60.55724232,87.048,86.917,47.7999]
[1645934518150,17.2574,87.04,86.918,2.11818253]
[1645934518351,29.2848,87.039,86.918,2.11818253]
[1645934518549,1.65262892,87.038,86.918,2.11818253]
[1645934518749,4.598,87.037,86.918,2.11818253]
[1645934518951,26.94345862,87.037,86.918,2.11818253]
[1645934519149,42.96128862,87.036,86.918,2.11818253]
[1645934519349,59.33852882,87.034,86.918,2.11818253]
[1645934519549,16.54,87.03,86.918,2.11818253]
[1645934519748,6.13199419,87.029,86.918,2.11818253]
[1645934519948,52.52828307,87.029,86.918,2.11818253]
[1645934520150,1.86830432,87.028,86.918,2.11818253]
[1645934520350,52.7878,87.027,86.918,2.11818253]
[1645934520549,2.07025383,87.026,86.918,2.11818253]
[1645934521053,4.81704304,87.026,86.918,2.11818253]
[1645934521349,2.74678921,87.025,86.918,2.11818253]
[1645934522452,2.02900304,87.023,86.918,2.11818253]
[1645934522652,4.599,87.022,86.918,2.11818253]
[1645934522851,7.34578921,87.022,86.918,2.11818253]
[1645934523052,16.54,87.02,86.918,2.11818253]
[1645934523253,6.59136726,87.019,86.917,47.7999]
[1645934523453,9.33815647,87.019,86.917,47.7999]
[1645934523654,25.09224783,87.018,86.917,47.7999]
[1645934523853,4.599,87.017,86.917,47.7999]
[1645934524054,24.9695,87.016,86.917,47.7999]
[1645934524251,6.47911823,87.015,86.918,2.42943335]
[1645934524452,6.47911823,87.015,86.917,47.7999]
[1645934524652,9.22590744,87.015,86.917,47.7999]
[1645934524953,2.74678921,87.014,86.917,47.7999]
[1645934526053,25.09224783,87.014,86.917,47.7999]
[1645934526254,1.74563165,87.013,86.917,47.7999]
[1645934526451,4.49242086,87.013,86.917,47.7999]
[1645934526652,2.74678921,87.012,86.917,47.7999]
[1645934527052,4.7735684,87.012,86.917,47.7999]
[1645934527352,2.74678921,87.011,86.917,47.7999]
[1645934529556,2.74678921,87.011,86.9,16.54]
[1645934529755,16.54,87.01,86.901,22.5208]
[1645934529957,1.77548831,87.009,86.901,22.5208]
[1645934530160,9.12227752,87.009,86.901,22.5208]
[1645934530356,2.74678921,87.008,86.901,22.5208]
[1645934530556,63.87461077,87.007,86.901,22.5208]
[1645934530757,1.75938374,87.006,86.9,16.54]
[1645934530959,1.75938374,87.006,86.871,46.90244779]
[1645934530960,4.6,87.005,86.871,46.90244779]
[1645934531157,16.54,86.99,86.871,23.16942067]
[1645934531369,16.54,86.99,86.87,16.54]
[1645934531370,17.2686,86.98,86.87,16.54]
[1645934531557,6.44749769,86.979,86.87,16.54]
[1645934531758,46.35128879,86.978,86.871,2.23979606]
[1645934531962,49.098078,86.978,86.871,2.23979606]
[1645934532158,49.098078,86.978,86.863,23.8975]
[1645934532159,140.68447532,86.977,86.85,128.74]
[1645934532357,140.68447532,86.977,86.84,23.16942067]
[1645934532358,114.9,86.969,86.84,23.16942067]
[1645934532558,16.54,86.96,86.83,0.5756153]
[1645934532758,1.52060842,86.958,86.83,0.5756153]
[1645934532967,4.602,86.957,86.83,0.5756153]
[1645934533161,114.9,86.956,86.83,0.5756153]
[1645934533358,114.9,86.939,86.83,0.5756153]
[1645934533557,16.54,86.93,86.83,0.5756153]
[1645934533762,17.2832,86.91,86.83,0.5756153]
[1645934533961,1.63537733,86.908,86.83,0.5756153]
[1645934534161,44.69986247,86.906,86.83,0.5756153]
[1645934534361,2.07613743,86.905,86.83,0.5756153]
[1645934534760,4.82292664,86.905,86.83,0.5756153]
[1645934535061,2.74678921,86.904,86.83,0.5756153]
[1645934535260,16.54,86.89,86.83,0.5756153]
[1645934535460,1.68391711,86.889,86.83,0.5756153]
[1645934535661,26.05780907,86.889,86.83,0.5756153]
[1645934535861,1.60122423,86.888,86.83,0.5756153]
[1645934536262,17.2861,86.88,86.75,16.54]
[1645934536464,114.9,86.869,86.715,46.9743]
[1645934536662,114.9,86.867,86.72,16.54]
[1645934536862,1.83557821,86.866,86.721,114.9]
[1645934537062,18.58223165,86.866,86.721,114.9]
[1645934537262,166.22490646,86.864,86.721,2.4904187]
[1645934537464,16.54,86.85,86.721,2.4904187]
[1645934537664,23.7858,86.849,86.721,2.4904187]
[1645934537863,114.9,86.847,86.722,2.74678921]
[1645934538065,121.38475051,86.846,86.722,2.74678921]
[1645934538267,1.66027946,86.845,86.722,2.74678921]
[1645934538465,16.54,86.83,86.722,2.74678921]
[1645934538765,17.3021,86.82,86.721,2.4904187]
[1645934538967,16.54,86.81,86.704,24.5145]
[1645934539170,1.96941463,86.809,86.694,2.74678921]
[1645934539368,4.71620384,86.809,86.694,2.74678921]
[1645934539667,4.58142588,86.808,86.694,2.74678921]
[1645934540067,2.74678921,86.807,86.695,2.63151252]
[1645934540467,2.74678921,86.807,86.696,2.74678921]
[1645934540468,17.3021,86.8,86.696,2.74678921]
[1645934540668,33.8421,86.8,86.696,2.74678921]
[1645934540870,50.75572922,86.799,86.696,2.74678921]
[1645934541070,1.71109515,86.798,86.696,2.74678921]
[1645934541872,2.74678921,86.797,86.696,2.74678921]
[1645934542874,26.68214783,86.797,86.696,2.74678921]
[1645934543073,1.87825439,86.796,86.696,2.74678921]
[1645934543273,4.6250436,86.796,86.696,2.74678921]
[1645934543473,23.93535862,86.795,86.696,2.74678921]
[1645934543673,1.97821538,86.794,86.697,2.27318568]
[1645934543873,16.54,86.79,86.697,2.27318568]
[1645934544176,48.93800986,86.799,86.698,2.74678921]
[1645934544375,48.93800986,86.799,86.7,131.44]
[1645934544572,48.93800986,86.799,86.7,16.54]
[1645934544777,48.93800986,86.799,86.701,2.74678921]
[1645934544974,48.93800986,86.799,86.702,0.25]
[1645934545176,48.93800986,86.799,86.702,43.69267794]
[1645934545377,1.63677847,86.798,86.703,2.74678921]
[1645934546379,25.57213709,86.798,86.703,2.74678921]
[1645934546580,1.70845622,86.797,86.703,2.74678921]
[1645934547479,1.72716769,86.795,86.685,17.87834459]
[1645934547679,1.72716769,86.795,86.671,47.0284]
[1645934548283,1.72716769,86.795,86.672,2.51176431]
[1645934548482,4.611,86.794,86.672,2.51176431]
[1645934548681,4.611,86.794,86.673,16.96877792]
[1645934548682,16.54,86.79,86.673,16.96877792]
[1645934548884,16.54,86.79,86.673,19.71556713]
[1645934549082,1.75023019,86.789,86.674,2.74678921]
[1645934549286,1.75023019,86.789,86.674,19.71556713]
[1645934549482,1.75023019,86.789,86.675,16.96877792]
[1645934549681,1.75023019,86.789,86.675,19.71556713]
[1645934549883,1.75023019,86.789,86.676,2.74678921]
[1645934550283,1.75023019,86.789,86.677,16.96877792]
[1645934550685,1.75023019,86.789,86.678,2.74678921]
[1645934551087,1.75023019,86.789,86.679,16.96877792]
[1645934551299,1.75023019,86.789,86.68,16.54]
[1645934551499,1.75023019,86.789,86.68,134.18678921]
[1645934551699,16.54,86.79,86.682,2.13522134]
[1645934551901,2.08939759,86.797,86.682,2.13522134]
[1645934552100,2.08939759,86.797,86.684,2.48053733]
[1645934552501,2.08939759,86.797,86.686,2.65022414]
[1645934552701,2.08939759,86.797,86.691,114.9]
[1645934552903,2.08939759,86.797,86.692,2.75342709]
[1645934553104,2.08939759,86.797,86.692,19.71556713]
[1645934553401,2.08939759,86.797,86.693,2.74678921]
[1645934553604,2.08939759,86.797,86.693,19.71556713]
[1645934553804,2.08939759,86.797,86.694,16.96877792]
[1645934554004,2.08939759,86.797,86.695,2.0827071]
[1645934554204,45.5414,86.798,86.694,19.71556713]
[1645934554407,45.5414,86.798,86.696,16.96877792]
[1645934554706,48.93800986,86.799,86.701,1.51176431]
[1645934555104,1.61361613,86.798,86.702,2.74678921]
[1645934556708,1.97853886,86.797,86.702,2.74678921]
[1645934558708,1.98049621,86.796,86.702,2.74678921]
[1645934559410,2.74678921,86.795,86.702,2.74678921]
[1645934561913,1.98049621,86.796,86.702,2.74678921]
[1645934562615,1.78630805,86.807,86.702,2.74678921]
[1645934562816,4.46723256,86.826,86.704,114.9]
[1645934563015,1.72044335,86.826,86.705,0.25]
[1645934563217,1.72044335,86.826,86.705,19.09890047]
[1645934563416,60.09476306,86.825,86.706,2.74678921]
[1645934563616,1.64473251,86.824,86.72,16.54]
[1645934563818,1.64473251,86.824,86.721,24.76619555]
[1645934564117,1.64473251,86.824,86.721,27.51298476]
[1645934564317,1.64473251,86.824,86.722,2.74678921]
[1645934564517,26.95861113,86.824,86.722,2.74678921]
[1645934564719,1.97897642,86.823,86.722,117.64678921]
[1645934565116,1.97897642,86.823,86.723,2.74678921]
[1645934565316,1.97897642,86.823,86.721,24.76619555]
[1645934565317,12.48543619,86.822,86.721,24.76619555]
[1645934565518,1.84244435,86.821,86.721,24.76619555]
[1645934565718,4.58923356,86.821,86.721,24.76619555]
[1645934565919,25.31387862,86.82,86.721,24.76619555]
[1645934566219,2.74678921,86.821,86.721,24.76619555]
[1645934566418,1.62728836,86.819,86.721,24.76619555]
[1645934566819,4.37407757,86.819,86.721,24.76619555]
[1645934567019,25.31387862,86.818,86.721,24.76619555]
[1645934567222,1.68868397,86.817,86.721,24.76619555]
[1645934567419,1.68868397,86.817,86.722,2.74678921]
[1645934567624,1.68868397,86.817,86.722,125.04678921]
[1645934568021,1.68868397,86.817,86.723,2.74678921]
[1645934568219,60.09476306,86.825,86.723,4.88949446]